[Event "Early-Titled-Tuesday-Blitz-February-13-2024"]
[Site "Chess.com"]
[Date "2024.02.13"]
[Round "2"]
[White "Aash20"]
[Black "campochess"]
[Result "1-0"]
[WhiteElo "2459"]
[BlackElo "2118"]
[TimeControl "180+1"]
[EndTime "8:20:23 PST"]
[Termination "Aash20 won on time"]

1. e4 {[%clk 0:02:56.4]} 1... c5 {[%clk 0:02:59.9]} 2. Nf3 {[%clk 0:02:55.9]}
2... Nc6 {[%clk 0:03:00]} 3. Bb5 {[%clk 0:02:55.6]} 3... e5 {[%clk 0:02:58.8]}
4. O-O {[%clk 0:02:54.9]} 4... Bd6 {[%clk 0:02:58.5]} 5. c3 {[%clk 0:02:54.1]}
5... Nge7 {[%clk 0:02:56.4]} 6. d4 {[%clk 0:02:53.3]} 6... Qc7 {[%clk
0:02:55.1]} 7. h3 {[%clk 0:02:48.3]} 7... O-O {[%clk 0:02:53.7]} 8. Be3 {[%clk
0:02:44.3]} 8... b6 {[%clk 0:02:52.1]} 9. Nbd2 {[%clk 0:02:39.1]} 9... Kh8
{[%clk 0:02:45.2]} 10. Nc4 {[%clk 0:02:36.9]} 10... f5 {[%clk 0:02:43.4]} 11.
Nxd6 {[%clk 0:02:34.9]} 11... Qxd6 {[%clk 0:02:42.7]} 12. dxc5 {[%clk
0:02:29.5]} 12... Qxd1 {[%clk 0:02:42]} 13. Raxd1 {[%clk 0:02:27.9]} 13... f4
{[%clk 0:02:34.7]} 14. Bc1 {[%clk 0:02:16.3]} 14... bxc5 {[%clk 0:02:34.5]} 15.
Bxc6 {[%clk 0:02:06.5]} 15... Nxc6 {[%clk 0:02:32.5]} 16. Rd5 {[%clk 0:02:06]}
16... Ba6 {[%clk 0:02:26.4]} 17. Re1 {[%clk 0:02:04.4]} 17... Bc4 {[%clk
0:02:23.5]} 18. Rxd7 {[%clk 0:01:59.3]} 18... Bxa2 {[%clk 0:02:23.4]} 19. Rc7
{[%clk 0:01:58.6]} 19... Na5 {[%clk 0:02:22.7]} 20. Rxc5 {[%clk 0:01:56.7]}
20... Nb3 {[%clk 0:02:22.7]} 21. Rxe5 {[%clk 0:01:55.8]} 21... Rab8 {[%clk
0:02:13.7]} 22. Re7 {[%clk 0:01:47.9]} 22... Nxc1 {[%clk 0:02:12.5]} 23. Rxc1
{[%clk 0:01:47.2]} 23... Rxb2 {[%clk 0:02:12.2]} 24. Rxa7 {[%clk 0:01:46.7]}
24... Bb1 {[%clk 0:02:12.2]} 25. e5 {[%clk 0:01:43.5]} 25... Be4 {[%clk
0:02:11.2]} 26. Ng5 {[%clk 0:01:42.3]} 26... Bf5 {[%clk 0:02:03.1]} 27. c4
{[%clk 0:01:38.9]} 27... h6 {[%clk 0:02:02.4]} 28. Nf7+ {[%clk 0:01:38]} 28...
Kg8 {[%clk 0:02:01]} 29. Nd6 {[%clk 0:01:38.5]} 29... Be6 {[%clk 0:01:59]} 30.
Re7 {[%clk 0:01:37.9]} 30... Bf5 {[%clk 0:01:27.4]} 31. c5 {[%clk 0:01:35.2]}
31... Bd3 {[%clk 0:01:18.3]} 32. c6 {[%clk 0:01:33.5]} 32... f3 {[%clk
0:01:15.3]} 33. g4 {[%clk 0:01:31.6]} 33... Ba6 {[%clk 0:01:08]} 34. c7 {[%clk
0:01:30.8]} 34... h5 {[%clk 0:00:47.4]} 35. c8=Q {[%clk 0:01:27.4]} 35... Bxc8
{[%clk 0:00:41.9]} 36. Rxc8 {[%clk 0:01:26.8]} 36... Rxc8 {[%clk 0:00:40.4]} 37.
Nxc8 {[%clk 0:01:26.7]} 37... hxg4 {[%clk 0:00:36.2]} 38. hxg4 {[%clk
0:01:26.4]} 38... Rb4 {[%clk 0:00:36.2]} 39. e6 {[%clk 0:01:18.4]} 39... Rxg4+
{[%clk 0:00:36]} 40. Kh2 {[%clk 0:01:16.5]} 40... Rg2+ {[%clk 0:00:35.9]} 41.
Kh3 {[%clk 0:01:16.7]} 41... Rxf2 {[%clk 0:00:35.7]} 42. Kg3 {[%clk 0:01:17]}
42... Rc2 {[%clk 0:00:35.2]} 43. Re8+ {[%clk 0:01:13.1]} 43... Kh7 {[%clk
0:00:34]} 44. Kxf3 {[%clk 0:01:14]} 44... Kg6 {[%clk 0:00:31.9]} 45. Nd6 {[%clk
0:01:12.9]} 45... Kf6 {[%clk 0:00:28.4]} 46. Ne4+ {[%clk 0:01:12.1]} 46... Ke5
{[%clk 0:00:28.2]} 47. Nf2 {[%clk 0:01:06.3]} 47... Rc3+ {[%clk 0:00:25.2]} 48.
Ke2 {[%clk 0:01:00.8]} 48... Rc6 {[%clk 0:00:20.3]} 49. e7 {[%clk 0:00:56.4]}
49... Kf6 {[%clk 0:00:16.9]} 50. Nd3 {[%clk 0:00:51]} 50... Re6+ {[%clk
0:00:16.4]} 51. Kf3 {[%clk 0:00:49.9]} 51... Rxe7 {[%clk 0:00:16.4]} 52. Ra8
{[%clk 0:00:49.3]} 52... Rd7 {[%clk 0:00:12.6]} 53. Nf4 {[%clk 0:00:48.9]} 53...
Ke7 {[%clk 0:00:12.5]} 54. Ke4 {[%clk 0:00:48.3]} 54... Rb7 {[%clk 0:00:12.3]}
55. Ke5 {[%clk 0:00:46.5]} 55... Kf7 {[%clk 0:00:11.9]} 56. Nd5 {[%clk
0:00:46.5]} 56... Rd7 {[%clk 0:00:09.4]} 57. Rc8 {[%clk 0:00:46.1]} 57... Ra7
{[%clk 0:00:08]} 58. Ne3 {[%clk 0:00:46.3]} 58... Ra5+ {[%clk 0:00:06.9]} 59.
Kf4 {[%clk 0:00:45.1]} 59... Ke6 {[%clk 0:00:02.1]} 60. Rc7 {[%clk 0:00:43]} 1-0

[Event "Early-Titled-Tuesday-Blitz-February-13-2024"]
[Site "Chess.com"]
[Date "2024.02.13"]
[Round "2"]
[White "Egor_Koshulyan"]
[Black "mitrabhaa"]
[Result "0-1"]
[WhiteElo "2625"]
[BlackElo "2924"]
[TimeControl "180+1"]
[EndTime "8:20:24 PST"]
[Termination "mitrabhaa won by resignation"]

1. f4 {[%clk 0:03:00.9]} 1... d5 {[%clk 0:02:40.5]} 2. Nf3 {[%clk 0:03:00.7]}
2... Nf6 {[%clk 0:02:40.3]} 3. g3 {[%clk 0:03:01]} 3... b5 {[%clk 0:02:39.7]} 4.
Bg2 {[%clk 0:02:58.8]} 4... Bb7 {[%clk 0:02:39.8]} 5. O-O {[%clk 0:02:59.3]}
5... e6 {[%clk 0:02:39.8]} 6. d3 {[%clk 0:02:59.8]} 6... c5 {[%clk 0:02:39.9]}
7. e4 {[%clk 0:02:52.6]} 7... dxe4 {[%clk 0:02:35.2]} 8. Ng5 {[%clk 0:02:53.1]}
8... Nbd7 {[%clk 0:02:34.9]} 9. Nxe4 {[%clk 0:02:47.9]} 9... Nxe4 {[%clk
0:02:28]} 10. dxe4 {[%clk 0:02:48.8]} 10... c4 {[%clk 0:02:27.6]} 11. Be3 {[%clk
0:02:39.3]} 11... Bc5 {[%clk 0:02:24.6]} 12. Qe2 {[%clk 0:02:23.1]} 12... Qb6
{[%clk 0:02:20.8]} 13. Bxc5 {[%clk 0:02:22.4]} 13... Nxc5 {[%clk 0:02:21.7]} 14.
Kh1 {[%clk 0:02:22.4]} 14... h5 {[%clk 0:02:21.2]} 15. Nc3 {[%clk 0:02:20.8]}
15... h4 {[%clk 0:02:18]} 16. g4 {[%clk 0:02:21.2]} 16... h3 {[%clk 0:02:13.6]}
17. Bf3 {[%clk 0:02:21.3]} 17... b4 {[%clk 0:02:13.6]} 18. Nd1 {[%clk
0:02:16.8]} 18... c3 {[%clk 0:02:12.9]} 19. bxc3 {[%clk 0:02:16.6]} 19... Ba6
{[%clk 0:02:05.5]} 20. c4 {[%clk 0:02:16.3]} 20... Rc8 {[%clk 0:02:06]} 21. Ne3
{[%clk 0:02:15.9]} 21... Na4 {[%clk 0:02:05.6]} 22. f5 {[%clk 0:02:04.8]} 22...
Nb2 {[%clk 0:01:57.9]} 23. fxe6 {[%clk 0:02:03.7]} 23... Qxe6 {[%clk 0:01:54.4]}
24. Nf5 {[%clk 0:01:10.7]} 24... O-O {[%clk 0:01:51.7]} 25. Qe3 {[%clk 0:01:11]}
25... Rfe8 {[%clk 0:01:27.4]} 26. Qd4 {[%clk 0:00:21.5]} 26... Qe5 {[%clk
0:01:24.3]} 27. Qxa7 {[%clk 0:00:21.8]} 27... Bxc4 {[%clk 0:01:21.9]} 28. Rf2
{[%clk 0:00:20.3]} 28... Nd3 {[%clk 0:01:14.7]} 29. Rff1 {[%clk 0:00:20.7]}
29... Nf4 {[%clk 0:01:07.4]} 30. Rfe1 {[%clk 0:00:17.6]} 30... Be2 {[%clk
0:01:06.2]} 31. Qf2 {[%clk 0:00:15.7]} 31... Rxc2 {[%clk 0:01:02.8]} 32. Rac1
{[%clk 0:00:13.1]} 32... Rxc1 {[%clk 0:00:49.6]} 33. Rxc1 {[%clk 0:00:12.3]}
33... Nd3 {[%clk 0:00:49.3]} 34. Qxe2 {[%clk 0:00:11.6]} 34... Nxc1 {[%clk
0:00:49.3]} 35. Qc4 {[%clk 0:00:10.8]} 35... Qc3 {[%clk 0:00:45.8]} 36. Qf1
{[%clk 0:00:04]} 36... Nxa2 {[%clk 0:00:42.2]} 37. g5 {[%clk 0:00:04.5]} 37...
Qc1 {[%clk 0:00:41.9]} 38. Bd1 {[%clk 0:00:05.2]} 38... Qxg5 {[%clk 0:00:36.2]}
39. Nd6 {[%clk 0:00:04.8]} 39... Qg2+ {[%clk 0:00:34.4]} 40. Qxg2 {[%clk
0:00:04.8]} 40... hxg2+ {[%clk 0:00:35.3]} 41. Kxg2 {[%clk 0:00:05.7]} 41... Rd8
{[%clk 0:00:36]} 42. e5 {[%clk 0:00:05.7]} 42... Nc1 {[%clk 0:00:32.3]} 43. Kf3
{[%clk 0:00:02.9]} 43... b3 {[%clk 0:00:32.7]} 44. Ke3 {[%clk 0:00:03.5]} 44...
b2 {[%clk 0:00:32.8]} 45. Bc2 {[%clk 0:00:04.1]} 45... Na2 {[%clk 0:00:33.2]}
46. Kd2 {[%clk 0:00:01.7]} 46... f6 {[%clk 0:00:31.5]} 47. Bb3+ {[%clk 0:00:02]}
47... Kf8 {[%clk 0:00:31.4]} 48. Bxa2 {[%clk 0:00:02.6]} 48... fxe5 {[%clk
0:00:32]} 49. Kc2 {[%clk 0:00:03.3]} 49... Rxd6 {[%clk 0:00:32.5]} 50. Kxb2
{[%clk 0:00:04.2]} 50... Rd2+ {[%clk 0:00:32.4]} 51. Ka3 {[%clk 0:00:04.8]}
51... Rxh2 {[%clk 0:00:33]} 52. Bd5 {[%clk 0:00:05.6]} 52... Ke7 {[%clk
0:00:33.5]} 53. Kb4 {[%clk 0:00:06.3]} 53... Kd6 {[%clk 0:00:34.4]} 54. Be4
{[%clk 0:00:07.1]} 54... Rh4 {[%clk 0:00:34.6]} 55. Kc3 {[%clk 0:00:07.8]} 55...
Rxe4 {[%clk 0:00:34.5]} 0-1

[Event "Early-Titled-Tuesday-Blitz-February-13-2024"]
[Site "Chess.com"]
[Date "2024.02.13"]
[Round "2"]
[White "carloseduar100"]
[Black "GulenayAydin"]
[Result "1-0"]
[WhiteElo "2356"]
[BlackElo "2532"]
[TimeControl "180+1"]
[EndTime "8:20:25 PST"]
[Termination "carloseduar100 won by checkmate"]

1. d4 {[%clk 0:02:47.8]} 1... Nf6 {[%clk 0:02:59.5]} 2. Bg5 {[%clk 0:02:47.7]}
2... g6 {[%clk 0:02:59.6]} 3. Bxf6 {[%clk 0:02:47.1]} 3... exf6 {[%clk
0:03:00.5]} 4. g3 {[%clk 0:02:48]} 4... Bg7 {[%clk 0:03:00.9]} 5. Bg2 {[%clk
0:02:48.9]} 5... O-O {[%clk 0:03:01.5]} 6. e3 {[%clk 0:02:48.7]} 6... d5 {[%clk
0:02:56.7]} 7. Ne2 {[%clk 0:02:48.9]} 7... c6 {[%clk 0:02:56.8]} 8. O-O {[%clk
0:02:49.4]} 8... f5 {[%clk 0:02:56.8]} 9. Nd2 {[%clk 0:02:49.8]} 9... Nd7 {[%clk
0:02:57.3]} 10. c4 {[%clk 0:02:50.2]} 10... dxc4 {[%clk 0:02:56.7]} 11. Nxc4
{[%clk 0:02:50.3]} 11... Nf6 {[%clk 0:02:57.4]} 12. b4 {[%clk 0:02:49.3]} 12...
Be6 {[%clk 0:02:54.3]} 13. Na5 {[%clk 0:02:47.2]} 13... Qe7 {[%clk 0:02:52.5]}
14. a3 {[%clk 0:02:40.9]} 14... Ne4 {[%clk 0:02:48.2]} 15. Nf4 {[%clk
0:02:38.8]} 15... h5 {[%clk 0:02:46.4]} 16. Rc1 {[%clk 0:02:21.1]} 16... h4
{[%clk 0:02:30.9]} 17. Qc2 {[%clk 0:01:53.4]} 17... hxg3 {[%clk 0:02:21.4]} 18.
hxg3 {[%clk 0:01:54.3]} 18... Nd6 {[%clk 0:02:06.8]} 19. Rfd1 {[%clk 0:01:47.7]}
19... Rac8 {[%clk 0:02:05.2]} 20. Qa4 {[%clk 0:01:35.8]} 20... a6 {[%clk
0:02:03.7]} 21. d5 {[%clk 0:01:23.8]} 21... cxd5 {[%clk 0:02:03.5]} 22. Nxd5
{[%clk 0:01:23.6]} 22... Bxd5 {[%clk 0:02:03.1]} 23. Bxd5 {[%clk 0:01:22.3]}
23... Nb5 {[%clk 0:01:21]} 24. Bxb7 {[%clk 0:01:09.2]} 24... Rb8 {[%clk
0:00:43.7]} 25. Bxa6 {[%clk 0:01:06.1]} 25... Nc3 {[%clk 0:00:40.4]} 26. Rxc3
{[%clk 0:01:03.1]} 26... Bxc3 {[%clk 0:00:41.3]} 27. Nc6 {[%clk 0:01:02.1]}
27... Qe8 {[%clk 0:00:42]} 28. b5 {[%clk 0:01:00.4]} 28... Ra8 {[%clk
0:00:38.9]} 29. Qc4 {[%clk 0:01:00.3]} 29... Bf6 {[%clk 0:00:37.8]} 30. a4
{[%clk 0:00:59]} 30... Kg7 {[%clk 0:00:24.4]} 31. a5 {[%clk 0:00:58.9]} 31...
Rh8 {[%clk 0:00:24.3]} 32. Bb7 {[%clk 0:00:53.2]} 32... Qg8 {[%clk 0:00:08.2]}
33. Bxa8 {[%clk 0:00:51.9]} 33... Qxa8 {[%clk 0:00:09.1]} 34. a6 {[%clk
0:00:50]} 34... Qg8 {[%clk 0:00:09.6]} 35. Qd5 {[%clk 0:00:50.1]} 35... Qh7
{[%clk 0:00:09.9]} 36. a7 {[%clk 0:00:43]} 36... Qh2+ {[%clk 0:00:09.8]} 37. Kf1
{[%clk 0:00:43.2]} 37... Ra8 {[%clk 0:00:10.2]} 38. b6 {[%clk 0:00:42.1]} 38...
Qh5 {[%clk 0:00:05.4]} 39. Nb4 {[%clk 0:00:28.7]} 39... Rh8 {[%clk 0:00:05.3]}
40. b7 {[%clk 0:00:28.1]} 40... Qg4 {[%clk 0:00:05.7]} 41. a8=Q {[%clk
0:00:19.5]} 41... Rh2 {[%clk 0:00:04.9]} 42. Qh1 {[%clk 0:00:20.3]} 42... Rxh1+
{[%clk 0:00:05.2]} 43. Kg2 {[%clk 0:00:19.9]} 43... Qh3+ {[%clk 0:00:05.7]} 44.
Kf3 {[%clk 0:00:19.8]} 44... Qg4+ {[%clk 0:00:06.5]} 45. Kg2 {[%clk 0:00:20.2]}
45... Qxd1 {[%clk 0:00:07.1]} 46. b8=Q {[%clk 0:00:18.4]} 46... Rg1+ {[%clk
0:00:07.2]} 47. Kh2 {[%clk 0:00:17.5]} 47... Rh1+ {[%clk 0:00:07.8]} 48. Qxh1
{[%clk 0:00:17.2]} 48... Qh5+ {[%clk 0:00:08]} 49. Kg2 {[%clk 0:00:17.3]} 49...
Qg4 {[%clk 0:00:08.6]} 50. Qf4 {[%clk 0:00:17.1]} 50... Qe2 {[%clk 0:00:08.5]}
51. Qhh6+ {[%clk 0:00:15.9]} 51... Kg8 {[%clk 0:00:08.5]} 52. Qb8+ {[%clk
0:00:16.1]} 52... Bd8 {[%clk 0:00:08.7]} 53. Qxd8# {[%clk 0:00:16.3]} 1-0

[Event "Early-Titled-Tuesday-Blitz-February-13-2024"]
[Site "Chess.com"]
[Date "2024.02.13"]
[Round "2"]
[White "WhiteKnight2612"]
[Black "Truequitos"]
[Result "1-0"]
[WhiteElo "2872"]
[BlackElo "2599"]
[TimeControl "180+1"]
[EndTime "8:20:28 PST"]
[Termination "WhiteKnight2612 won by resignation"]

1. e4 {[%clk 0:02:45.1]} 1... e6 {[%clk 0:02:59.8]} 2. Nf3 {[%clk 0:02:45.2]}
2... d5 {[%clk 0:03:00.1]} 3. Nc3 {[%clk 0:02:45.7]} 3... Nf6 {[%clk 0:02:59.6]}
4. e5 {[%clk 0:02:45.8]} 4... Nfd7 {[%clk 0:03:00]} 5. d4 {[%clk 0:02:46.5]}
5... c5 {[%clk 0:03:00.4]} 6. Bb5 {[%clk 0:02:47.1]} 6... a6 {[%clk 0:02:59.3]}
7. Bxd7+ {[%clk 0:02:47.5]} 7... Bxd7 {[%clk 0:02:58.9]} 8. O-O {[%clk
0:02:48.1]} 8... Nc6 {[%clk 0:02:58.2]} 9. Ne2 {[%clk 0:02:47.6]} 9... cxd4
{[%clk 0:02:57.3]} 10. Nexd4 {[%clk 0:02:47.7]} 10... Bc5 {[%clk 0:02:56.4]} 11.
c3 {[%clk 0:02:47.8]} 11... O-O {[%clk 0:02:55.5]} 12. Re1 {[%clk 0:02:47.8]}
12... b5 {[%clk 0:02:54.3]} 13. Nb3 {[%clk 0:02:47]} 13... Bb6 {[%clk
0:02:52.4]} 14. Be3 {[%clk 0:02:47.4]} 14... Bxe3 {[%clk 0:02:44]} 15. Rxe3
{[%clk 0:02:47.1]} 15... Qb6 {[%clk 0:02:44.7]} 16. Nfd4 {[%clk 0:02:47.2]}
16... f5 {[%clk 0:02:30.7]} 17. exf6 {[%clk 0:02:45.8]} 17... Rxf6 {[%clk
0:02:31]} 18. Nxc6 {[%clk 0:02:42.9]} 18... Qxc6 {[%clk 0:02:24.5]} 19. Qd4
{[%clk 0:02:40.9]} 19... Qd6 {[%clk 0:02:20.4]} 20. g3 {[%clk 0:02:38.7]} 20...
Raf8 {[%clk 0:02:20.5]} 21. f4 {[%clk 0:02:38.6]} 21... Rc8 {[%clk 0:02:19]} 22.
Rae1 {[%clk 0:02:37.4]} 22... Rff8 {[%clk 0:02:07.3]} 23. Qe5 {[%clk 0:02:37.2]}
23... Qb6 {[%clk 0:02:03.4]} 24. a3 {[%clk 0:02:34.4]} 24... Rf5 {[%clk
0:01:58.7]} 25. Qd4 {[%clk 0:02:33.8]} 25... Qd6 {[%clk 0:01:57.7]} 26. Qb4
{[%clk 0:02:33.2]} 26... Qb6 {[%clk 0:01:55.8]} 27. Nd4 {[%clk 0:02:29.2]} 27...
Rf7 {[%clk 0:01:52.6]} 28. Kg2 {[%clk 0:02:21.9]} 28... Rc4 {[%clk 0:01:52.6]}
29. Qb3 {[%clk 0:02:22.4]} 29... Rf6 {[%clk 0:01:39.5]} 30. Qd1 {[%clk 0:02:19]}
30... a5 {[%clk 0:01:35.6]} 31. b3 {[%clk 0:02:14.3]} 31... Rc8 {[%clk
0:01:32.4]} 32. b4 {[%clk 0:02:14.7]} 32... axb4 {[%clk 0:01:27.7]} 33. axb4
{[%clk 0:02:15.6]} 33... Ra8 {[%clk 0:01:26.6]} 34. R1e2 {[%clk 0:02:13.4]}
34... Qc7 {[%clk 0:01:03.5]} 35. Nb3 {[%clk 0:01:43.1]} 35... Qc4 {[%clk
0:00:54.5]} 36. Nc5 {[%clk 0:01:40.3]} 36... Bc6 {[%clk 0:00:48.3]} 37. Qd4
{[%clk 0:01:38.2]} 37... Qxd4 {[%clk 0:00:21.4]} 38. cxd4 {[%clk 0:01:37.7]}
38... Kf7 {[%clk 0:00:22.3]} 39. Nxe6 {[%clk 0:01:36.8]} 39... Ra4 {[%clk
0:00:18.1]} 40. Ng5+ {[%clk 0:00:56.5]} 40... Kg6 {[%clk 0:00:18.3]} 41. Rb2
{[%clk 0:00:57]} 41... Bd7 {[%clk 0:00:17]} 42. Re5 {[%clk 0:00:52.8]} 42... h6
{[%clk 0:00:15.3]} 43. Nf3 {[%clk 0:00:52.6]} 43... Rfa6 {[%clk 0:00:10.7]} 44.
Rxd5 {[%clk 0:00:50.3]} 44... Bc6 {[%clk 0:00:10.6]} 45. Ne5+ {[%clk 0:00:49.2]}
45... Kf6 {[%clk 0:00:09.5]} 46. Nxc6 {[%clk 0:00:49.6]} 46... Rxc6 {[%clk
0:00:10.4]} 47. Rxb5 {[%clk 0:00:49.8]} 47... Rc4 {[%clk 0:00:11.3]} 48. d5
{[%clk 0:00:49.3]} 48... Rd4 {[%clk 0:00:11.9]} 49. Rb6+ {[%clk 0:00:46.4]}
49... Kf5 {[%clk 0:00:11.7]} 50. d6 {[%clk 0:00:46.5]} 50... Ke6 {[%clk
0:00:12.2]} 51. Re2+ {[%clk 0:00:45.3]} 51... Kd5 {[%clk 0:00:07.8]} 52. d7
{[%clk 0:00:42.3]} 52... Kc4 {[%clk 0:00:08.1]} 53. Re4 {[%clk 0:00:31.9]} 53...
Ra8 {[%clk 0:00:04.7]} 54. Rxd4+ {[%clk 0:00:30.9]} 54... Kxd4 {[%clk
0:00:05.6]} 55. Rd6+ {[%clk 0:00:31.1]} 1-0

[Event "Early-Titled-Tuesday-Blitz-February-13-2024"]
[Site "Chess.com"]
[Date "2024.02.13"]
[Round "2"]
[White "SHIVACalypso"]
[Black "Nechitaylo_Nikita"]
[Result "0-1"]
[WhiteElo "2515"]
[BlackElo "2314"]
[TimeControl "180+1"]
[EndTime "8:20:28 PST"]
[Termination "Nechitaylo_Nikita won by checkmate"]

1. Nf3 {[%clk 0:02:55.2]} 1... c5 {[%clk 0:03:00]} 2. c4 {[%clk 0:02:55.3]} 2...
Nc6 {[%clk 0:02:59.7]} 3. g3 {[%clk 0:02:55.9]} 3... g6 {[%clk 0:02:59.3]} 4.
Bg2 {[%clk 0:02:56.2]} 4... Bg7 {[%clk 0:03:00]} 5. Nc3 {[%clk 0:02:56.6]} 5...
d6 {[%clk 0:02:58.8]} 6. O-O {[%clk 0:02:56.5]} 6... e5 {[%clk 0:02:58.7]} 7.
Ne1 {[%clk 0:02:55.8]} 7... Be6 {[%clk 0:02:56.1]} 8. Nd5 {[%clk 0:02:51.7]}
8... Nge7 {[%clk 0:02:54.2]} 9. Nc2 {[%clk 0:02:50]} 9... O-O {[%clk 0:02:47.4]}
10. Nce3 {[%clk 0:02:47.6]} 10... Rb8 {[%clk 0:02:48]} 11. d3 {[%clk 0:02:46.3]}
11... b5 {[%clk 0:02:48]} 12. Nxe7+ {[%clk 0:02:45.6]} 12... Nxe7 {[%clk
0:02:48.1]} 13. cxb5 {[%clk 0:02:45.5]} 13... Rxb5 {[%clk 0:02:47.6]} 14. Nc4
{[%clk 0:02:39.8]} 14... d5 {[%clk 0:02:29.8]} 15. a4 {[%clk 0:02:32.2]} 15...
Rb8 {[%clk 0:02:18.9]} 16. Na3 {[%clk 0:02:28.6]} 16... Nc6 {[%clk 0:01:53]} 17.
e4 {[%clk 0:02:20.6]} 17... dxe4 {[%clk 0:01:39.2]} 18. dxe4 {[%clk 0:02:15.4]}
18... Qxd1 {[%clk 0:01:30.9]} 19. Rxd1 {[%clk 0:02:14.8]} 19... Nd4 {[%clk
0:01:30.2]} 20. Bf1 {[%clk 0:01:59.5]} 20... Bg4 {[%clk 0:00:57.9]} 21. Rd3
{[%clk 0:01:53.2]} 21... Bf3 {[%clk 0:00:43.2]} 22. Bg2 {[%clk 0:01:33.3]} 22...
Be2 {[%clk 0:00:40.3]} 23. Rc3 {[%clk 0:01:33.9]} 23... Ba6 {[%clk 0:00:24.9]}
24. Bf1 {[%clk 0:01:28.1]} 24... Bb7 {[%clk 0:00:16.2]} 25. f3 {[%clk
0:01:18.4]} 25... f5 {[%clk 0:00:16.5]} 26. exf5 {[%clk 0:01:12]} 26... Nxf3+
{[%clk 0:00:10.4]} 27. Kf2 {[%clk 0:00:43.4]} 27... Rxf5 {[%clk 0:00:10.5]} 28.
Bc4+ {[%clk 0:00:30]} 28... Kh8 {[%clk 0:00:09.3]} 29. Ke2 {[%clk 0:00:30.9]}
29... Nd4+ {[%clk 0:00:08.9]} 30. Ke1 {[%clk 0:00:31.5]} 30... Rbf8 {[%clk
0:00:07.2]} 31. Be3 {[%clk 0:00:28.1]} 31... Nf3+ {[%clk 0:00:04.2]} 32. Ke2
{[%clk 0:00:25.8]} 32... Nxh2 {[%clk 0:00:04.8]} 33. Rh1 {[%clk 0:00:23.4]}
33... Bxh1 {[%clk 0:00:04.4]} 34. Nb5 {[%clk 0:00:21.8]} 34... Bg2 {[%clk
0:00:04]} 35. Kd2 {[%clk 0:00:18.5]} 35... Nf3+ {[%clk 0:00:03.7]} 36. Kc2
{[%clk 0:00:18.2]} 36... Nd4+ {[%clk 0:00:04.3]} 37. Kd2 {[%clk 0:00:18.1]}
37... Nf3+ {[%clk 0:00:02.2]} 38. Kc2 {[%clk 0:00:18]} 38... Re8 {[%clk
0:00:01.3]} 39. Nd6 {[%clk 0:00:15.8]} 39... Rd8 {[%clk 0:00:01.7]} 40. Nxf5
{[%clk 0:00:15.6]} 40... gxf5 {[%clk 0:00:01.8]} 41. Rb3 {[%clk 0:00:13.6]}
41... Nd4+ {[%clk 0:00:02.4]} 42. Bxd4 {[%clk 0:00:14.2]} 42... exd4 {[%clk
0:00:03.3]} 43. Rb7 {[%clk 0:00:11]} 43... Be4+ {[%clk 0:00:04]} 44. Bd3 {[%clk
0:00:11.4]} 44... Bxb7 {[%clk 0:00:04.9]} 45. a5 {[%clk 0:00:10.7]} 45... Be4
{[%clk 0:00:04.6]} 46. b3 {[%clk 0:00:10.2]} 46... Bxd3+ {[%clk 0:00:04.7]} 47.
Kxd3 {[%clk 0:00:11.1]} 47... Re8 {[%clk 0:00:05.5]} 48. Kc4 {[%clk 0:00:11.7]}
48... Re3 {[%clk 0:00:06.2]} 49. a6 {[%clk 0:00:10.5]} 49... Rc3+ {[%clk
0:00:06.7]} 50. Kb5 {[%clk 0:00:09.8]} 50... d3 {[%clk 0:00:07.6]} 51. Kc6
{[%clk 0:00:10.7]} 51... d2 {[%clk 0:00:07.6]} 52. Kb7 {[%clk 0:00:11.6]} 52...
d1=Q {[%clk 0:00:07.9]} 53. Kxa7 {[%clk 0:00:12.5]} 53... Qd7+ {[%clk 0:00:08]}
54. Kb8 {[%clk 0:00:13.4]} 54... Rxb3+ {[%clk 0:00:08.3]} 55. Ka8 {[%clk
0:00:13.5]} 55... Qc8+ {[%clk 0:00:08.3]} 56. Ka7 {[%clk 0:00:13]} 56... Qb8#
{[%clk 0:00:08.6]} 0-1